[Event "Late-Titled-Tuesday-Blitz-March-12-2024"]
[Site "Chess.com"]
[Date "2024.03.12"]
[Round "8"]
[White "Goryachkina"]
[Black "ArturoCaceres"]
[Result "1-0"]
[WhiteElo "2653"]
[BlackElo "2442"]
[TimeControl "180+1"]
[EndTime "15:27:48 PDT"]
[Termination "Goryachkina won by resignation"]

1. e4 {[%clk 0:03:00.2]} 1... c5 {[%clk 0:02:56.3]} 2. Nf3 {[%clk 0:02:59.7]}
2... Nc6 {[%clk 0:02:56.8]} 3. d4 {[%clk 0:02:57.2]} 3... cxd4 {[%clk
0:02:57.7]} 4. Nxd4 {[%clk 0:02:57.6]} 4... Nf6 {[%clk 0:02:58.6]} 5. Nc3 {[%clk
0:02:57.3]} 5... d6 {[%clk 0:02:59.1]} 6. Bg5 {[%clk 0:02:54]} 6... e6 {[%clk
0:02:59.3]} 7. Qd2 {[%clk 0:02:53.7]} 7... a6 {[%clk 0:02:59.8]} 8. O-O-O {[%clk
0:02:53.2]} 8... Bd7 {[%clk 0:03:00.4]} 9. f4 {[%clk 0:02:51.9]} 9... Be7 {[%clk
0:03:00.4]} 10. Kb1 {[%clk 0:02:42.6]} 10... Rc8 {[%clk 0:02:58.7]} 11. g4
{[%clk 0:02:33.6]} 11... b5 {[%clk 0:02:56.6]} 12. Bg2 {[%clk 0:02:25.5]} 12...
h6 {[%clk 0:02:55.8]} 13. Bh4 {[%clk 0:02:09.2]} 13... Nxd4 {[%clk 0:02:44]} 14.
Qxd4 {[%clk 0:02:08]} 14... Rc4 {[%clk 0:02:44.2]} 15. Qd2 {[%clk 0:01:54.6]}
15... Nxg4 {[%clk 0:02:42.8]} 16. Bxe7 {[%clk 0:01:50.8]} 16... Qxe7 {[%clk
0:02:41.1]} 17. Bf3 {[%clk 0:01:50.1]} 17... Nf6 {[%clk 0:02:39.6]} 18. Rhg1
{[%clk 0:01:50.1]} 18... g6 {[%clk 0:02:37.4]} 19. e5 {[%clk 0:01:46.5]} 19...
dxe5 {[%clk 0:02:28.4]} 20. fxe5 {[%clk 0:01:47.4]} 20... Nh7 {[%clk 0:02:19.4]}
21. Ne4 {[%clk 0:01:46.1]} 21... Ng5 {[%clk 0:02:02.3]} 22. Nf6+ {[%clk
0:01:22.1]} 22... Kf8 {[%clk 0:02:02.4]} 23. Nxd7+ {[%clk 0:01:21.6]} 23... Kg7
{[%clk 0:02:01.6]} 24. Be2 {[%clk 0:01:16.1]} 24... Rh4 {[%clk 0:01:59.4]} 25.
Nf6 {[%clk 0:01:14.1]} 25... Rxh2 {[%clk 0:01:58]} 26. Qe3 {[%clk 0:01:13.6]}
26... Rd8 {[%clk 0:01:35.8]} 27. a3 {[%clk 0:01:08.9]} 27... Rh3 {[%clk
0:01:33.2]} 28. Qf4 {[%clk 0:01:07.7]} 28... Rc8 {[%clk 0:01:26.1]} 29. Bd3
{[%clk 0:00:34.3]} 29... Rf3 {[%clk 0:01:15.4]} 30. Qg4 {[%clk 0:00:34.4]} 30...
Rb8 {[%clk 0:00:36]} 31. Rh1 {[%clk 0:00:27.9]} 31... b4 {[%clk 0:00:31.2]} 32.
Qh4 {[%clk 0:00:28]} 32... Rh8 {[%clk 0:00:19.9]} 33. axb4 {[%clk 0:00:26.7]}
33... Rxf6 {[%clk 0:00:12]} 34. exf6+ {[%clk 0:00:26.5]} 34... Qxf6 {[%clk
0:00:12.9]} 35. Qc4 {[%clk 0:00:25.5]} 35... Rb8 {[%clk 0:00:11.2]} 36. Rhf1
{[%clk 0:00:24.9]} 36... Qe5 {[%clk 0:00:10]} 37. Qc3 {[%clk 0:00:22]} 37...
Qxc3 {[%clk 0:00:07.4]} 38. bxc3 {[%clk 0:00:22.9]} 38... a5 {[%clk 0:00:04.8]}
39. b5 {[%clk 0:00:22.4]} 39... e5 {[%clk 0:00:05.4]} 40. c4 {[%clk 0:00:22.1]}
40... e4 {[%clk 0:00:05.1]} 41. Be2 {[%clk 0:00:22.3]} 41... f5 {[%clk
0:00:05.5]} 42. c5 {[%clk 0:00:21.7]} 42... Kf6 {[%clk 0:00:04.5]} 43. c6 {[%clk
0:00:21.8]} 43... Ke5 {[%clk 0:00:04.9]} 44. c7 {[%clk 0:00:21.6]} 44... Rf8
{[%clk 0:00:04.7]} 45. b6 {[%clk 0:00:21.6]} 45... Ne6 {[%clk 0:00:04.7]} 46.
Rd7 {[%clk 0:00:20.5]} 46... Nc5 {[%clk 0:00:04.3]} 47. Rd8 {[%clk 0:00:19.1]}
47... Rf6 {[%clk 0:00:02.1]} 48. c8=Q {[%clk 0:00:18.3]} 48... Rxb6+ {[%clk
0:00:02.6]} 49. Kc1 {[%clk 0:00:18.7]} 49... Ne6 {[%clk 0:00:03.1]} 50. Re8
{[%clk 0:00:17.5]} 50... f4 {[%clk 0:00:03.7]} 51. Rxe6+ {[%clk 0:00:17.5]}
51... Rxe6 {[%clk 0:00:04.6]} 52. Qc5+ {[%clk 0:00:17.6]} 52... Kf6 {[%clk
0:00:04.1]} 53. Rxf4+ {[%clk 0:00:18.5]} 53... Kg7 {[%clk 0:00:04.6]} 54. Qc7+
{[%clk 0:00:18.5]} 54... Kg8 {[%clk 0:00:05]} 55. Qf7+ {[%clk 0:00:18.5]} 55...
Kh8 {[%clk 0:00:04.6]} 56. Qf8+ {[%clk 0:00:19]} 1-0

[Event "Late-Titled-Tuesday-Blitz-March-12-2024"]
[Site "Chess.com"]
[Date "2024.03.12"]
[Round "8"]
[White "cassoulet"]
[Black "egnfanclub"]
[Result "1/2-1/2"]
[WhiteElo "2768"]
[BlackElo "2384"]
[TimeControl "180+1"]
[EndTime "15:27:59 PDT"]
[Termination "Game drawn by repetition"]

1. d4 {[%clk 0:03:00.9]} 1... d5 {[%clk 0:02:59.7]} 2. Bf4 {[%clk 0:02:59.2]}
2... Nf6 {[%clk 0:02:59.3]} 3. e3 {[%clk 0:02:58]} 3... Bf5 {[%clk 0:02:58.6]}
4. Nf3 {[%clk 0:02:56.4]} 4... e6 {[%clk 0:02:58.9]} 5. Ne5 {[%clk 0:02:56.2]}
5... Nfd7 {[%clk 0:02:57]} 6. g4 {[%clk 0:02:55.3]} 6... Be4 {[%clk 0:02:52.6]}
7. f3 {[%clk 0:02:54.1]} 7... Bg6 {[%clk 0:02:47.4]} 8. h4 {[%clk 0:02:53.3]}
8... Nxe5 {[%clk 0:02:44]} 9. Bxe5 {[%clk 0:02:52.1]} 9... h5 {[%clk 0:02:43.3]}
10. g5 {[%clk 0:02:49.9]} 10... Nd7 {[%clk 0:02:42.5]} 11. Bh2 {[%clk
0:02:47.3]} 11... c5 {[%clk 0:02:40.5]} 12. Nc3 {[%clk 0:02:44.6]} 12... Be7
{[%clk 0:02:28.8]} 13. Qd2 {[%clk 0:02:38.8]} 13... cxd4 {[%clk 0:02:24.4]} 14.
exd4 {[%clk 0:02:38.2]} 14... O-O {[%clk 0:02:23.4]} 15. Bd3 {[%clk 0:02:36.5]}
15... Bxd3 {[%clk 0:02:22.8]} 16. Qxd3 {[%clk 0:02:37.4]} 16... g6 {[%clk
0:02:22.8]} 17. O-O-O {[%clk 0:02:33.3]} 17... Nb6 {[%clk 0:02:18.4]} 18. Kb1
{[%clk 0:02:29.3]} 18... Nc4 {[%clk 0:02:17.6]} 19. Ne2 {[%clk 0:02:26.8]} 19...
Qb6 {[%clk 0:02:03]} 20. Qb3 {[%clk 0:02:26]} 20... Rac8 {[%clk 0:01:54.3]} 21.
Qxb6 {[%clk 0:02:24.4]} 21... Nxb6 {[%clk 0:01:42.4]} 22. Rd3 {[%clk 0:02:22.9]}
22... Nc4 {[%clk 0:01:42]} 23. Bf4 {[%clk 0:02:19.2]} 23... b5 {[%clk
0:01:41.4]} 24. Nc3 {[%clk 0:02:15.3]} 24... a6 {[%clk 0:01:41]} 25. Bc1 {[%clk
0:02:13.6]} 25... Bd6 {[%clk 0:01:33.4]} 26. Ne2 {[%clk 0:02:08.8]} 26... Rc6
{[%clk 0:01:30.5]} 27. c3 {[%clk 0:02:07.8]} 27... a5 {[%clk 0:01:29.5]} 28. b3
{[%clk 0:02:07.6]} 28... Nb6 {[%clk 0:01:25.5]} 29. Bb2 {[%clk 0:02:07.3]} 29...
b4 {[%clk 0:01:23.8]} 30. Rc1 {[%clk 0:02:04.4]} 30... Rfc8 {[%clk 0:01:23.4]}
31. cxb4 {[%clk 0:01:58]} 31... Bxb4 {[%clk 0:01:23.5]} 32. Rxc6 {[%clk
0:01:54.6]} 32... Rxc6 {[%clk 0:01:24.4]} 33. a3 {[%clk 0:01:54.6]} 33... Be1
{[%clk 0:01:23.7]} 34. Bc3 {[%clk 0:01:52.2]} 34... Bxh4 {[%clk 0:01:17.3]} 35.
f4 {[%clk 0:01:39.4]} 35... a4 {[%clk 0:01:17.7]} 36. Rh3 {[%clk 0:01:39.1]}
36... Bf2 {[%clk 0:01:15.1]} 37. Rf3 {[%clk 0:01:39]} 37... Bh4 {[%clk
0:01:09.3]} 38. Rh3 {[%clk 0:01:38.9]} 38... Bf2 {[%clk 0:01:06.1]} 39. bxa4
{[%clk 0:01:19.4]} 39... Nxa4 {[%clk 0:01:05.4]} 40. Bd2 {[%clk 0:01:16.5]}
40... Rc4 {[%clk 0:00:54.2]} 41. Rd3 {[%clk 0:01:15.5]} 41... h4 {[%clk
0:00:49.5]} 42. Ka2 {[%clk 0:01:14.9]} 42... Nb6 {[%clk 0:00:47.8]} 43. Kb3
{[%clk 0:01:13]} 43... Rc8 {[%clk 0:00:40.6]} 44. Rf3 {[%clk 0:01:09.6]} 44...
Nc4 {[%clk 0:00:37]} 45. Bb4 {[%clk 0:01:04]} 45... Be3 {[%clk 0:00:31.8]} 46.
Rh3 {[%clk 0:01:03.5]} 46... Bf2 {[%clk 0:00:31]} 47. Rf3 {[%clk 0:01:01.1]}
47... Be3 {[%clk 0:00:29.9]} 48. Rh3 {[%clk 0:01:00.9]} 48... Bf2 {[%clk
0:00:30.2]} 49. Rh2 {[%clk 0:00:56.7]} 49... Be3 {[%clk 0:00:20.6]} 50. Rxh4
{[%clk 0:00:54.3]} 50... Nd2+ {[%clk 0:00:21]} 51. Ka4 {[%clk 0:00:47.2]} 51...
Ra8+ {[%clk 0:00:20]} 52. Kb5 {[%clk 0:00:47]} 52... Nb3 {[%clk 0:00:19.6]} 53.
Bc5 {[%clk 0:00:34.9]} 53... Nxc5 {[%clk 0:00:19.8]} 54. dxc5 {[%clk 0:00:33.6]}
54... Rxa3 {[%clk 0:00:19.4]} 55. c6 {[%clk 0:00:33.5]} 55... Ra2 {[%clk
0:00:14.8]} 56. Nc3 {[%clk 0:00:20.5]} 56... Rb2+ {[%clk 0:00:14.2]} 57. Ka4
{[%clk 0:00:19.5]} 57... Rb8 {[%clk 0:00:11.3]} 58. Nb5 {[%clk 0:00:19.1]} 58...
Bb6 {[%clk 0:00:10.2]} 59. Rh3 {[%clk 0:00:18.4]} 59... Ra8+ {[%clk 0:00:10.5]}
60. Kb4 {[%clk 0:00:18.4]} 60... Kf8 {[%clk 0:00:10]} 61. Nd6 {[%clk 0:00:18.4]}
61... Ke7 {[%clk 0:00:08.5]} 62. Nb7 {[%clk 0:00:16.3]} 62... Bc7 {[%clk
0:00:07.3]} 63. Kb5 {[%clk 0:00:16.1]} 63... Ra1 {[%clk 0:00:04.8]} 64. Rf3
{[%clk 0:00:15.8]} 64... Rb1+ {[%clk 0:00:05.1]} 65. Ka6 {[%clk 0:00:16.3]}
65... Rc1 {[%clk 0:00:05.3]} 66. Kb5 {[%clk 0:00:16]} 66... Rb1+ {[%clk
0:00:05.6]} 67. Kc5 {[%clk 0:00:16.6]} 67... Rc1+ {[%clk 0:00:05.9]} 68. Kb5
{[%clk 0:00:16.1]} 68... Rb1+ {[%clk 0:00:06.2]} 1/2-1/2

[Event "Late-Titled-Tuesday-Blitz-March-12-2024"]
[Site "Chess.com"]
[Date "2024.03.12"]
[Round "8"]
[White "HansOnTwitch"]
[Black "Anton_Demchenko"]
[Result "0-1"]
[WhiteElo "3103"]
[BlackElo "2970"]
[TimeControl "180+1"]
[EndTime "15:28:11 PDT"]
[Termination "Anton_Demchenko won by resignation"]

1. e4 {[%clk 0:03:00.9]} 1... e5 {[%clk 0:02:56.6]} 2. Nf3 {[%clk 0:03:01.1]}
2... Nc6 {[%clk 0:02:56.7]} 3. Bb5 {[%clk 0:03:01.4]} 3... a6 {[%clk 0:02:56.9]}
4. Ba4 {[%clk 0:03:01.3]} 4... Nge7 {[%clk 0:02:57.2]} 5. c3 {[%clk 0:02:44.3]}
5... Ng6 {[%clk 0:02:56.7]} 6. d4 {[%clk 0:02:45]} 6... exd4 {[%clk 0:02:57.6]}
7. Nxd4 {[%clk 0:02:44.3]} 7... Bc5 {[%clk 0:02:54]} 8. Be3 {[%clk 0:02:43.2]}
8... Nce5 {[%clk 0:02:45.1]} 9. Bb3 {[%clk 0:02:40.9]} 9... d6 {[%clk
0:02:37.9]} 10. h3 {[%clk 0:02:40.6]} 10... O-O {[%clk 0:02:31.4]} 11. f4 {[%clk
0:02:40]} 11... Qh4+ {[%clk 0:02:19.6]} 12. Bf2 {[%clk 0:02:31.4]} 12... Qxf4
{[%clk 0:02:18.6]} 13. Qe2 {[%clk 0:02:32.1]} 13... Qc1+ {[%clk 0:02:13.9]} 14.
Qd1 {[%clk 0:01:55.3]} 14... Nd3+ {[%clk 0:01:36.1]} 15. Kf1 {[%clk 0:01:52.5]}
15... Qxd1+ {[%clk 0:01:26.9]} 16. Bxd1 {[%clk 0:01:52.1]} 16... Nxb2 {[%clk
0:01:27.6]} 17. Bb3 {[%clk 0:01:52.8]} 17... Nd3 {[%clk 0:01:27.2]} 18. Be3
{[%clk 0:01:52.3]} 18... Bb6 {[%clk 0:01:17.4]} 19. Nd2 {[%clk 0:01:51.3]} 19...
Nc5 {[%clk 0:01:16.5]} 20. Bc2 {[%clk 0:01:41.7]} 20... Ne5 {[%clk 0:01:15.2]}
21. Ke2 {[%clk 0:01:41.4]} 21... Ba5 {[%clk 0:01:10.1]} 22. Nb1 {[%clk
0:01:36.5]} 22... Nc4 {[%clk 0:01:01.4]} 23. Bf2 {[%clk 0:01:31.3]} 23... Re8
{[%clk 0:01:01.6]} 24. Kf3 {[%clk 0:01:28.7]} 24... Bd7 {[%clk 0:00:54.2]} 25.
Re1 {[%clk 0:01:27.1]} 25... Ne5+ {[%clk 0:00:47.9]} 26. Ke2 {[%clk 0:01:23.4]}
26... f5 {[%clk 0:00:45]} 27. Nb3 {[%clk 0:01:19.8]} 27... Bb5+ {[%clk
0:00:44.3]} 28. Kd1 {[%clk 0:01:20.1]} 28... Ncd3 {[%clk 0:00:27.9]} 29. Re2
{[%clk 0:01:10.1]} 29... Nb2+ {[%clk 0:00:25.6]} 30. Kc1 {[%clk 0:01:07.5]}
30... Bxe2 {[%clk 0:00:26]} 31. Kxb2 {[%clk 0:01:07.2]} 31... Bb6 {[%clk
0:00:21.2]} 32. Bxb6 {[%clk 0:01:06.3]} 32... Nc4+ {[%clk 0:00:21.4]} 33. Kc1
{[%clk 0:01:06.1]} 33... Nxb6 {[%clk 0:00:22.1]} 34. exf5 {[%clk 0:01:06.6]}
34... Bf1 {[%clk 0:00:17.3]} 35. N1d2 {[%clk 0:00:53]} 35... Re1+ {[%clk
0:00:15.1]} 36. Bd1 {[%clk 0:00:49.2]} 36... Bxg2 {[%clk 0:00:15.2]} 37. Kb2
{[%clk 0:00:46.1]} 37... Rae8 {[%clk 0:00:14.5]} 38. Nd4 {[%clk 0:00:45.9]}
38... Bxh3 {[%clk 0:00:12.9]} 39. N4f3 {[%clk 0:00:46.2]} 39... R1e3 {[%clk
0:00:07.5]} 40. Bb3+ {[%clk 0:00:45.9]} 40... d5 {[%clk 0:00:07.7]} 41. a4
{[%clk 0:00:35.6]} 41... c6 {[%clk 0:00:06.9]} 42. a5 {[%clk 0:00:32.3]} 42...
Nd7 {[%clk 0:00:07.5]} 43. c4 {[%clk 0:00:32.3]} 43... Nc5 {[%clk 0:00:08]} 44.
Bd1 {[%clk 0:00:24.1]} 44... Bxf5 {[%clk 0:00:07.9]} 45. Nd4 {[%clk 0:00:23]}
45... Bg6 {[%clk 0:00:07.6]} 46. cxd5 {[%clk 0:00:23]} 46... cxd5 {[%clk
0:00:08.5]} 47. N2b3 {[%clk 0:00:23.4]} 47... Nd3+ {[%clk 0:00:08.4]} 48. Ka3
{[%clk 0:00:23.7]} 48... Nc5 {[%clk 0:00:07.2]} 49. Kb4 {[%clk 0:00:22.8]} 49...
Nxb3 {[%clk 0:00:07.1]} 50. Bxb3 {[%clk 0:00:23.7]} 50... Bf7 {[%clk 0:00:06.1]}
51. Kc5 {[%clk 0:00:21.9]} 51... Rc3+ {[%clk 0:00:04.1]} 52. Kb6 {[%clk
0:00:21.7]} 52... Re4 {[%clk 0:00:04.5]} 53. Rd1 {[%clk 0:00:18.3]} 53... Rxd4
{[%clk 0:00:04.9]} 54. Rxd4 {[%clk 0:00:19.2]} 54... Rxb3+ {[%clk 0:00:05.2]}
55. Kc7 {[%clk 0:00:14.3]} 55... Rb5 {[%clk 0:00:06.1]} 56. Rf4 {[%clk
0:00:10.4]} 56... g6 {[%clk 0:00:06.5]} 57. Kd6 {[%clk 0:00:10.1]} 57... Kg7
{[%clk 0:00:05.1]} 58. Ke7 {[%clk 0:00:11]} 58... Bg8 {[%clk 0:00:05.6]} 59. Rf8
{[%clk 0:00:10.1]} 59... Rxa5 {[%clk 0:00:05.8]} 60. Rc8 {[%clk 0:00:10.4]}
60... Rb5 {[%clk 0:00:06.2]} 61. Rc7 {[%clk 0:00:11.3]} 61... d4 {[%clk
0:00:04.7]} 62. Kd6+ {[%clk 0:00:11.6]} 62... Kh6 {[%clk 0:00:04.9]} 63. Rc1
{[%clk 0:00:09.6]} 63... Bd5 {[%clk 0:00:04.6]} 64. Ke5 {[%clk 0:00:09.4]} 64...
Bc6+ {[%clk 0:00:04.9]} 65. Kxd4 {[%clk 0:00:09.7]} 65... Kg7 {[%clk 0:00:05.3]}
66. Re1 {[%clk 0:00:09.6]} 66... h5 {[%clk 0:00:05.8]} 67. Re7+ {[%clk
0:00:08.7]} 67... Kh6 {[%clk 0:00:06.4]} 68. Rc7 {[%clk 0:00:08.9]} 68... h4
{[%clk 0:00:06.9]} 69. Rc8 {[%clk 0:00:09.8]} 69... Kg5 {[%clk 0:00:07.3]} 70.
Rh8 {[%clk 0:00:09.8]} 70... Rd5+ {[%clk 0:00:07.7]} 71. Ke3 {[%clk 0:00:09.9]}
71... Rf5 {[%clk 0:00:08.6]} 72. Rd8 {[%clk 0:00:09.1]} 72... Rf3+ {[%clk
0:00:09]} 73. Ke2 {[%clk 0:00:08.9]} 73... h3 {[%clk 0:00:09.2]} 74. Rh8 {[%clk
0:00:09.6]} 74... Kg4 {[%clk 0:00:09.4]} 0-1

[Event "Late-Titled-Tuesday-Blitz-March-12-2024"]
[Site "Chess.com"]
[Date "2024.03.12"]
[Round "8"]
[White "prochn"]
[Black "manitodeplomo"]
[Result "1-0"]
[WhiteElo "2480"]
[BlackElo "2668"]
[TimeControl "180+1"]
[EndTime "15:28:13 PDT"]
[Termination "prochn won by resignation"]

1. d4 {[%clk 0:03:00.9]} 1... g6 {[%clk 0:02:53.7]} 2. g3 {[%clk 0:02:59.8]}
2... Bg7 {[%clk 0:02:52.5]} 3. Bg2 {[%clk 0:03:00.1]} 3... c5 {[%clk 0:02:53.1]}
4. d5 {[%clk 0:03:00]} 4... d6 {[%clk 0:02:48.9]} 5. Nf3 {[%clk 0:02:58.6]} 5...
Nf6 {[%clk 0:02:45.9]} 6. c4 {[%clk 0:02:58.5]} 6... b5 {[%clk 0:02:45.5]} 7.
cxb5 {[%clk 0:02:58.2]} 7... a6 {[%clk 0:02:45.9]} 8. bxa6 {[%clk 0:02:58.1]}
8... Bxa6 {[%clk 0:02:46.1]} 9. Nc3 {[%clk 0:02:57.3]} 9... Nbd7 {[%clk
0:02:46.3]} 10. O-O {[%clk 0:02:57]} 10... Nb6 {[%clk 0:02:46.2]} 11. Rb1 {[%clk
0:02:52.3]} 11... Nfd7 {[%clk 0:02:43.2]} 12. Qc2 {[%clk 0:02:46.3]} 12... Nc4
{[%clk 0:02:42.4]} 13. b3 {[%clk 0:02:40.1]} 13... Qa5 {[%clk 0:02:42.4]} 14.
bxc4 {[%clk 0:02:30]} 14... Qxc3 {[%clk 0:02:41.4]} 15. Qxc3 {[%clk 0:02:20.8]}
15... Bxc3 {[%clk 0:02:42.3]} 16. Bb2 {[%clk 0:02:08.8]} 16... Bxb2 {[%clk
0:02:38.7]} 17. Rxb2 {[%clk 0:02:09.7]} 17... Bxc4 {[%clk 0:02:38.7]} 18. Nd2
{[%clk 0:01:48]} 18... Bxe2 {[%clk 0:02:29.5]} 19. Re1 {[%clk 0:01:48.3]} 19...
Ba6 {[%clk 0:02:29.1]} 20. Bh3 {[%clk 0:01:40.6]} 20... Ne5 {[%clk 0:02:14.8]}
21. Rb3 {[%clk 0:01:17.6]} 21... f5 {[%clk 0:01:49.2]} 22. f4 {[%clk 0:01:12.2]}
22... Nc4 {[%clk 0:01:34.8]} 23. Nf3 {[%clk 0:01:07.8]} 23... Kd7 {[%clk
0:01:28.1]} 24. Ng5 {[%clk 0:01:07.5]} 24... h6 {[%clk 0:01:20.3]} 25. Nf3
{[%clk 0:00:59.5]} 25... Rhb8 {[%clk 0:01:19.3]} 26. Nh4 {[%clk 0:00:59.6]}
26... Rxb3 {[%clk 0:01:15.5]} 27. axb3 {[%clk 0:00:59.8]} 27... Nd2 {[%clk
0:01:16]} 28. Re3 {[%clk 0:00:54.6]} 28... Rb8 {[%clk 0:01:10]} 29. Nxg6 {[%clk
0:00:53.9]} 29... Rxb3 {[%clk 0:01:09.9]} 30. Bxf5+ {[%clk 0:00:53.9]} 30... Ke8
{[%clk 0:01:09.9]} 31. Rxe7+ {[%clk 0:00:53.6]} 31... Kd8 {[%clk 0:01:09.1]} 32.
Rd7+ {[%clk 0:00:52.7]} 32... Ke8 {[%clk 0:01:08.2]} 33. Rxd6 {[%clk 0:00:46.5]}
33... Bd3 {[%clk 0:01:05.6]} 34. Bxd3 {[%clk 0:00:29]} 34... Rxd3 {[%clk
0:01:04.9]} 35. Ne5 {[%clk 0:00:29.1]} 35... Rd4 {[%clk 0:01:03.9]} 36. Rxh6
{[%clk 0:00:17.1]} 36... Rxd5 {[%clk 0:00:56.7]} 37. Kf2 {[%clk 0:00:17.2]}
37... c4 {[%clk 0:00:55.4]} 38. Rc6 {[%clk 0:00:17.3]} 38... c3 {[%clk
0:00:51.9]} 39. Ke2 {[%clk 0:00:14.4]} 39... Ne4 {[%clk 0:00:49.9]} 40. Ke3
{[%clk 0:00:14.3]} 40... Nd6 {[%clk 0:00:48.5]} 41. Rxc3 {[%clk 0:00:13.5]}
41... Ra5 {[%clk 0:00:46]} 42. Rd3 {[%clk 0:00:13.3]} 42... Nf5+ {[%clk
0:00:40.9]} 43. Ke4 {[%clk 0:00:13.4]} 43... Ne7 {[%clk 0:00:41]} 44. g4 {[%clk
0:00:13.3]} 44... Ra4+ {[%clk 0:00:35.7]} 45. Kf3 {[%clk 0:00:13.4]} 45... Ra1
{[%clk 0:00:35.4]} 46. h4 {[%clk 0:00:13.5]} 46... Rf1+ {[%clk 0:00:34.5]} 47.
Kg3 {[%clk 0:00:12.6]} 47... Ng8 {[%clk 0:00:32.9]} 48. g5 {[%clk 0:00:11.6]}
48... Ne7 {[%clk 0:00:32.7]} 49. Kg4 {[%clk 0:00:09.5]} 49... Rg1+ {[%clk
0:00:32.2]} 50. Kh3 {[%clk 0:00:08.3]} 50... Nf5 {[%clk 0:00:30.7]} 51. Rd2
{[%clk 0:00:05.8]} 51... Ke7 {[%clk 0:00:29.6]} 52. Re2 {[%clk 0:00:05.3]} 52...
Kd6 {[%clk 0:00:26.9]} 53. Nf3 {[%clk 0:00:05.3]} 53... Rf1 {[%clk 0:00:25.8]}
54. Kg2 {[%clk 0:00:05.2]} 54... Ra1 {[%clk 0:00:25.6]} 55. Rd2+ {[%clk
0:00:04.8]} 55... Ke6 {[%clk 0:00:24.7]} 56. h5 {[%clk 0:00:05]} 56... Nd6
{[%clk 0:00:15.6]} 57. h6 {[%clk 0:00:05]} 57... Ne4 {[%clk 0:00:15.4]} 58. Re2
{[%clk 0:00:04.8]} 58... Kf5 {[%clk 0:00:15.8]} 59. Nd2 {[%clk 0:00:05]} 59...
Nxd2 {[%clk 0:00:09.4]} 60. Rxd2 {[%clk 0:00:05.3]} 60... Kxf4 {[%clk
0:00:10.3]} 61. h7 {[%clk 0:00:04.9]} 61... Ra8 {[%clk 0:00:10]} 62. g6 {[%clk
0:00:05.2]} 62... Rh8 {[%clk 0:00:06.8]} 63. g7 {[%clk 0:00:04.8]} 63... Rxh7
{[%clk 0:00:07.4]} 64. g8=Q {[%clk 0:00:05.3]} 1-0

[Event "Late-Titled-Tuesday-Blitz-March-12-2024"]
[Site "Chess.com"]
[Date "2024.03.12"]
[Round "8"]
[White "Grischuk"]
[Black "Marcan2b"]
[Result "1/2-1/2"]
[WhiteElo "3066"]
[BlackElo "2938"]
[TimeControl "180+1"]
[EndTime "15:28:18 PDT"]
[Termination "Game drawn by repetition"]

1. d4 {[%clk 0:03:00.9]} 1... Nf6 {[%clk 0:02:58]} 2. c4 {[%clk 0:03:01.1]} 2...
e6 {[%clk 0:02:57.3]} 3. Bg5 {[%clk 0:03:00.9]} 3... Bb4+ {[%clk 0:02:53.5]} 4.
Nd2 {[%clk 0:03:00.6]} 4... h6 {[%clk 0:02:52.1]} 5. Bh4 {[%clk 0:03:00.7]} 5...
O-O {[%clk 0:02:52.5]} 6. Nf3 {[%clk 0:02:52.3]} 6... b6 {[%clk 0:02:51.5]} 7.
a3 {[%clk 0:02:31.1]} 7... Bxd2+ {[%clk 0:02:46.5]} 8. Nxd2 {[%clk 0:02:26.5]}
8... Bb7 {[%clk 0:02:45.2]} 9. e3 {[%clk 0:02:15.3]} 9... d6 {[%clk 0:02:43.4]}
10. f3 {[%clk 0:02:09.8]} 10... Nbd7 {[%clk 0:02:42.7]} 11. Be2 {[%clk
0:02:09.8]} 11... c5 {[%clk 0:02:36.7]} 12. b4 {[%clk 0:01:51.4]} 12... Qc7
{[%clk 0:02:32.5]} 13. O-O {[%clk 0:01:48.6]} 13... Rac8 {[%clk 0:02:30.3]} 14.
Rc1 {[%clk 0:01:45]} 14... Rfe8 {[%clk 0:02:28.1]} 15. Re1 {[%clk 0:01:44.1]}
15... Bc6 {[%clk 0:02:22]} 16. Nb1 {[%clk 0:01:37.8]} 16... e5 {[%clk
0:01:45.7]} 17. d5 {[%clk 0:01:35.3]} 17... Bb7 {[%clk 0:01:45.6]} 18. Nc3
{[%clk 0:01:35.2]} 18... a6 {[%clk 0:01:46.3]} 19. Bd3 {[%clk 0:01:29.6]} 19...
Nh7 {[%clk 0:01:43.2]} 20. Qc2 {[%clk 0:01:24.3]} 20... Nhf8 {[%clk 0:01:41.1]}
21. b5 {[%clk 0:01:18.2]} 21... Ra8 {[%clk 0:01:35.5]} 22. Rb1 {[%clk
0:01:13.7]} 22... a5 {[%clk 0:01:33.4]} 23. Re2 {[%clk 0:01:09.7]} 23... Bc8
{[%clk 0:01:26.4]} 24. Rf1 {[%clk 0:01:07.6]} 24... g5 {[%clk 0:01:18.8]} 25.
Be1 {[%clk 0:01:07.3]} 25... Nf6 {[%clk 0:01:19.7]} 26. g4 {[%clk 0:01:02.3]}
26... N6h7 {[%clk 0:01:01.5]} 27. h4 {[%clk 0:01:00.4]} 27... f6 {[%clk
0:00:59.3]} 28. Rh2 {[%clk 0:00:59.8]} 28... Re7 {[%clk 0:00:58.9]} 29. hxg5
{[%clk 0:00:56.2]} 29... hxg5 {[%clk 0:00:59.8]} 30. Kg2 {[%clk 0:00:53]} 30...
Ra7 {[%clk 0:00:59.6]} 31. Rfh1 {[%clk 0:00:53]} 31... Qd8 {[%clk 0:00:59.2]}
32. Rh6 {[%clk 0:00:50.9]} 32... Rg7 {[%clk 0:00:57.8]} 33. Kg1 {[%clk
0:00:46.9]} 33... Raf7 {[%clk 0:00:55.7]} 34. Kf1 {[%clk 0:00:37]} 34... f5
{[%clk 0:00:50.8]} 35. gxf5 {[%clk 0:00:37]} 35... g4 {[%clk 0:00:51.2]} 36.
fxg4 {[%clk 0:00:35.5]} 36... Rxg4 {[%clk 0:00:48.6]} 37. e4 {[%clk 0:00:35.9]}
37... Qg5 {[%clk 0:00:42.1]} 38. Qd2 {[%clk 0:00:27.9]} 38... Rf4+ {[%clk
0:00:39.2]} 39. Bf2 {[%clk 0:00:28.5]} 39... R4xf5 {[%clk 0:00:24]} 40. Qxg5+
{[%clk 0:00:24.7]} 40... Rxg5 {[%clk 0:00:23.9]} 41. Rxd6 {[%clk 0:00:14.3]}
41... Nf6 {[%clk 0:00:24.2]} 42. Ke2 {[%clk 0:00:07.7]} 42... Rg2 {[%clk
0:00:22.6]} 43. Rg1 {[%clk 0:00:07.2]} 43... Bg4+ {[%clk 0:00:21.2]} 44. Ke1
{[%clk 0:00:07.2]} 44... Rxf2 {[%clk 0:00:18.9]} 45. Kxf2 {[%clk 0:00:04.6]}
45... Nxe4+ {[%clk 0:00:19]} 46. Ke3 {[%clk 0:00:05.2]} 46... Nxd6 {[%clk
0:00:19.1]} 47. Rxg4+ {[%clk 0:00:05.9]} 47... Kh8 {[%clk 0:00:18.1]} 48. Ne4
{[%clk 0:00:04.6]} 48... Nf5+ {[%clk 0:00:17.2]} 49. Kd2 {[%clk 0:00:04.6]}
49... Rg7 {[%clk 0:00:13.3]} 50. Ng5 {[%clk 0:00:04.3]} 50... Nd4 {[%clk
0:00:10.6]} 51. Ke3 {[%clk 0:00:03.6]} 51... Kg8 {[%clk 0:00:09.5]} 52. Ke4
{[%clk 0:00:02.3]} 52... Nd7 {[%clk 0:00:09.6]} 53. Ke3 {[%clk 0:00:02.3]} 53...
Nf6 {[%clk 0:00:09.8]} 54. Rg1 {[%clk 0:00:02.6]} 54... Nh5 {[%clk 0:00:09.4]}
55. Nh3 {[%clk 0:00:02.4]} 55... Ng3 {[%clk 0:00:09]} 56. Bb1 {[%clk 0:00:01.2]}
56... Kf8 {[%clk 0:00:08.7]} 57. Kf2 {[%clk 0:00:01.6]} 57... Nh5 {[%clk
0:00:07]} 58. Rxg7 {[%clk 0:00:01.2]} 58... Nxg7 {[%clk 0:00:07.9]} 59. Ke3
{[%clk 0:00:01.8]} 59... Ke7 {[%clk 0:00:08.2]} 60. Nf2 {[%clk 0:00:01.5]} 60...
Ne8 {[%clk 0:00:08]} 61. Ne4 {[%clk 0:00:01.8]} 61... Nd6 {[%clk 0:00:08.2]} 62.
Nxd6 {[%clk 0:00:02.5]} 62... Kxd6 {[%clk 0:00:09.1]} 63. Be4 {[%clk 0:00:02.2]}
63... Nb3 {[%clk 0:00:07.6]} 64. Bc2 {[%clk 0:00:02.4]} 64... Nd4 {[%clk
0:00:08]} 65. Be4 {[%clk 0:00:02.9]} 65... Ke7 {[%clk 0:00:08.5]} 66. Bd3 {[%clk
0:00:03.3]} 66... Kf6 {[%clk 0:00:09.2]} 67. Be4 {[%clk 0:00:03.9]} 67... Nb3
{[%clk 0:00:08.2]} 68. Bc2 {[%clk 0:00:04.1]} 68... Nd4 {[%clk 0:00:08.7]} 69.
Be4 {[%clk 0:00:04.9]} 69... Ke7 {[%clk 0:00:07.9]} 70. Bd3 {[%clk 0:00:05.3]}
70... Kd6 {[%clk 0:00:08.8]} 71. Be4 {[%clk 0:00:05.9]} 1/2-1/2